bitfinex/quotes_ETHUSD_20250425
["timestamp","ask_amount","ask_price","bid_price","bid_amount"]
[1745587235591,0.1875952,1775.6,1775.5,22.232]
[1745587235767,0.3375952,1775.6,1775.5,22.232]
[1745587235975,0.5797523,1775.6,1775.5,22.233]
[1745587236160,0.5797523,1775.6,1775.5,27.86521627]
[1745587236671,0.4297523,1775.6,1775.5,31.21496724]
[1745587238976,0.4297523,1775.6,1775.5,27.86521627]
[1745587240625,0.4297523,1775.6,1775.5,10.97821627]
[1745587241609,0.4297523,1775.6,1775.5,5.346]
[1745587243483,0.4297523,1775.6,1775.5,10.97821627]
[1745587245691,0.4297523,1775.6,1775.5,11.80451627]
[1745587245908,0.4297523,1775.6,1775.5,13.54819724]
[1745587247199,0.2421571,1775.6,1775.5,13.54819724]
[1745587247403,0.2421571,1775.6,1775.5,14.79921486]
[1745587247641,0.2421571,1775.6,1775.5,17.79921486]
[1745587247804,0.2421571,1775.6,1775.5,16.54819724]
[1745587250464,0.1875952,1775.8,1775.7,5.63158191]
[1745587250648,0.1875952,1775.8,1775.7,6.75791576]
[1745587250965,0.23204603,1775.9,1775.8,5.63126478]
[1745587251113,0.23204603,1775.9,1775.8,6.39366478]
[1745587251821,0.23204603,1775.9,1775.8,5.63126478]
[1745587252468,0.38204603,1775.9,1775.8,5.63126478]
[1745587252822,0.38204603,1775.9,1775.7,5.63158191]
[1745587253024,0.1875952,1775.8,1775.7,5.63158191]
[1745587262271,0.1875952,1775.8,1775.7,7.5788114]
[1745587264986,0.1875952,1775.8,1775.7,6.7579114]
[1745587265159,0.1875952,1775.8,1775.7,5.63158191]
[1745587271603,0.1875952,1775.8,1775.7,10.96758191]
[1745587284330,0.1875952,1775.8,1775.7,11.77188191]
[1745587286124,0.04445083,1775.9,1775.8,6.43276478]
[1745587288206,1e-08,1775.9,1775.8,9.98276478]
[1745587288402,1e-08,1775.9,1775.8,12.20290121]
[1745587288803,1e-08,1775.9,1775.8,12.19735203]
[1745587289218,1e-08,1775.9,1775.8,11.64735203]
[1745587289513,1e-08,1775.9,1775.8,8.64735203]
[1745587289715,1e-08,1775.9,1775.8,6.4272156]
[1745587301773,1e-08,1775.9,1775.8,5.6257156]
[1745587302440,0.15000001,1775.9,1775.8,5.6257156]
[1745587302976,0.15000001,1775.9,1775.7,10.96740371]
[1745587303476,0.15000001,1775.9,1775.7,16.59876938]
[1745587303637,0.15000001,1775.9,1775.7,10.96736567]
[1745587304051,0.15000001,1775.9,1775.7,16.59875484]
[1745587304285,0.15000001,1775.9,1775.7,10.96736567]
[1745587306651,0.15000001,1775.9,1775.7,5.336]
[1745587307251,1.40101762,1775.8,1775.7,5.336]
[1745587307693,1.40101762,1775.8,1775.5,5.317]
[1745587307694,0.15,1775.7,1775.5,5.317]
[1745587307843,1.40101762,1775.6,1775.5,5.317]
[1745587308786,0.15,1775.6,1775.5,10.94921627]
[1745587309808,0.15,1775.6,1775.5,5.317]
[1745587311295,1.40101762,1775.6,1775.5,5.317]
[1745587312084,1.84111938,1775.6,1775.5,5.317]
[1745587316593,7.84111938,1775.6,1775.5,5.317]
[1745587323235,1.25101762,1774.7,1774.5,5.319]
[1745587324729,0.15,1774.6,1774.5,5.319]
[1745587326240,0.25572674,1774.6,1774.5,5.319]
[1745587328929,0.15,1774.4,1774.1,5.32]
[1745587329133,1.25101762,1774.2,1774.1,5.32]
[1745587329327,1.40101762,1774.2,1774.1,5.32]
[1745587332147,10.40101762,1774.2,1774.1,5.32]
[1745587333208,10.40101762,1774.2,1773.7,5.322]
[1745587333407,1.25101762,1773.9,1773.7,5.322]
[1745587334048,1.40101762,1773.9,1773.7,5.322]
[1745587334848,1.84111938,1773.9,1773.7,5.322]
[1745587335147,0.15,1773.8,1773.5,16.899]
[1745587335451,6.15,1773.8,1773.5,22.211]
[1745587335650,7.40101762,1774.2,1773.7,5.637932]
[1745587335852,7.25101762,1774.2,1774.0,5.63673206]
[1745587336214,7.25101762,1774.2,1773.9,11.74294192]
[1745587336428,7.25101762,1774.2,1773.9,6.1059]
[1745587338560,7.25101762,1774.2,1773.9,11.74305973]
[1745587339362,7.25101762,1774.2,1773.9,6.1059]
[1745587339648,7.25101762,1774.2,1774.0,5.63693657]
[1745587339649,6.0,1774.2,1774.0,5.63693657]
[1745587339877,6.0,1774.2,1774.0,11.27358871]
[1745587340088,7.40101762,1774.4,1774.0,5.636767]
[1745587340655,7.40101762,1774.4,1773.9,12.35358287]
[1745587340863,4.25101762,1774.5,1774.1,5.63656264]
[1745587341398,4.25101762,1774.5,1774.0,5.63680643]
[1745587341542,4.25101762,1774.5,1774.0,7.43585262]
[1745587341945,1.25101762,1774.3,1774.0,1.79904619]
[1745587342185,4.25101762,1774.5,1774.1,6.39940301]
[1745587342366,1.25101762,1774.5,1774.1,6.39915977]
[1745587343161,1.25101762,1774.5,1774.1,0.7628]
[1745587343347,1.25101762,1774.5,1774.1,6.39945685]
[1745587344086,1.25101762,1774.5,1774.1,12.03591696]
[1745587344251,1.25101762,1774.5,1774.1,7.78275643]
[1745587345863,1.25101762,1774.3,1774.1,0.7628]
[1745587346085,1.25101762,1774.3,1774.0,5.6367654]
[1745587346376,1.25101762,1774.1,1773.9,11.77734423]
[1745587347016,1.25101762,1774.1,1773.9,5.313]
[1745587350168,3.0,1774.2,1773.9,10.95019409]
[1745587350370,7.25101762,1774.3,1773.9,6.9717677]
[1745587350693,0.10572674,1774.6,1773.9,6.9717677]
[1745587350694,1.35674436,1774.6,1774.4,5.6355785]
[1745587350898,0.10572674,1774.6,1774.4,5.6355534]
[1745587351194,0.10572674,1774.6,1774.5,5.63539025]
[1745587351490,0.10572674,1774.6,1774.5,6.42089025]
[1745587353910,0.10572674,1774.6,1774.5,0.7855]
[1745587354081,0.10572674,1774.6,1774.5,6.42089025]
[1745587356129,0.10572674,1774.6,1774.5,0.7855]
[1745587356717,0.10572674,1774.6,1774.4,5.63544889]
[1745587360280,0.10572674,1774.6,1774.4,6.80778378]
[1745587360633,0.10572674,1774.6,1774.5,5.63539025]
[1745587361676,0.10572674,1774.6,1774.5,6.40609025]
[1745587383892,0.10572674,1774.6,1774.5,9.40609025]
[1745587386395,0.10572674,1774.6,1774.5,6.40609025]
[1745587386619,0.10572674,1774.6,1774.5,5.63539025]
[1745587388226,0.10572674,1774.6,1774.5,6.76247416]
[1745587392145,0.10572674,1774.6,1774.4,5.63544889]
[1745587392300,0.25572674,1774.6,1774.4,5.63544889]
[1745587393204,0.25572674,1774.6,1774.4,11.27096565]
[1745587393405,0.25572674,1774.6,1774.5,5.302]
[1745587394308,1.50674436,1774.6,1774.5,5.302]
[1745587394732,1.8074188,1774.6,1774.5,5.302]
[1745587395037,1.9574188,1774.6,1774.5,5.302]
[1745587396936,0.10572674,1774.6,1774.5,5.302]
[1745587397738,0.10572674,1774.6,1774.5,10.93739025]
[1745587397937,0.10572674,1774.6,1774.5,5.302]
[1745587398505,0.10572674,1774.6,1774.5,10.93739025]
[1745587399852,0.10572674,1774.6,1774.5,5.302]
[1745587402053,0.25572674,1774.6,1774.5,5.302]
[1745587404708,6.25572674,1774.6,1774.5,5.302]
[1745587405353,7.00640118,1774.6,1774.5,5.302]
[1745587405861,6.85640118,1774.6,1774.1,22.196]
[1745587406007,1.25101762,1774.4,1774.1,22.196]
[1745587410412,7.25101762,1774.4,1774.1,22.196]
[1745587411750,1.25101762,1774.2,1774.1,22.196]
[1745587411967,1.40101762,1774.2,1774.1,5.294]
[1745587412115,2.44111938,1774.2,1774.1,5.294]
[1745587412622,5.44111938,1774.2,1774.1,5.294]
[1745587415955,2.44111938,1774.2,1774.1,5.294]
[1745587416135,1.40101762,1774.2,1774.1,5.294]
[1745587417963,4.40101762,1774.2,1774.1,5.294]
[1745587419341,10.25101762,1774.2,1773.7,5.295]
[1745587419657,3.0,1774.0,1773.7,5.295]
[1745587421015,6.15,1774.1,1773.7,11.71552657]
[1745587421214,6.15,1774.1,1773.7,13.45088424]
[1745587421451,6.15,1774.1,1773.8,5.63751176]
[1745587421653,6.0,1774.1,1773.7,13.45083151]
[1745587421860,7.25101762,1774.1,1773.7,13.45083151]
[1745587422070,7.25101762,1774.1,1773.7,7.81305767]
[1745587422226,0.15,1774.0,1773.7,7.03035767]
[1745587422423,0.15,1773.8,1773.3,0.8302]
[1745587422623,0.15,1773.8,1773.2,11.7442152]
[1745587422624,1.25101762,1773.5,1773.2,11.7442152]
[1745587423037,1.25101762,1773.5,1773.2,11.74416467]
[1745587423646,1.25101762,1773.5,1773.2,11.7441157]
[1745587423845,1.25101762,1773.5,1773.2,12.92352727]
[1745587424358,7.25101762,1773.7,1773.2,18.56281854]
[1745587424558,7.25101762,1773.7,1773.2,5.296]
[1745587424559,1.40101762,1773.5,1773.2,5.296]
[1745587425453,1.25101762,1773.3,1773.2,5.296]
[1745587430565,1.40101762,1773.3,1773.2,5.296]
[1745587434033,7.40101762,1773.3,1773.2,5.296]
[1745587434737,8.14111938,1773.3,1773.2,5.296]
[1745587434920,11.56804524,1773.3,1773.2,5.296]
[1745587437759,3.0,1773.2,1773.1,0.05]
[1745587438804,9.0,1773.2,1773.1,0.05]
[1745587439007,9.15,1773.2,1773.1,0.05]
[1745587439226,10.30680452,1773.2,1773.1,0.05]
[1745587439509,11.55782214,1773.2,1773.1,0.05]
[1745587439733,10.30680452,1773.2,1773.1,0.05]
[1745587446638,9.15,1773.2,1773.1,0.05]
[1745587450779,0.15,1773.1,1772.8,5.289]
[1745587451096,4.40101762,1772.9,1772.4,6.0957]
[1745587451271,4.25101762,1772.7,1772.4,6.0957]
[1745587452698,6.0,1772.8,1772.5,0.7548]
[1745587453101,6.0,1772.8,1772.5,6.39641908]
[1745587453289,6.0,1772.8,1772.7,0.7943]
[1745587454226,6.0,1773.2,1772.8,6.40975589]
[1745587454524,6.0,1773.3,1773.0,6.40902804]
[1745587454677,0.15,1773.7,1773.2,0.769]
[1745587454678,6.0,1773.5,1773.2,0.769]
[1745587454878,7.25101762,1773.6,1773.2,0.769]
[1745587455093,7.99111938,1773.6,1773.2,0.769]
[1745587455380,3.0,1773.5,1773.2,0.769]
[1745587455575,7.99111938,1773.6,1773.2,0.769]
[1745587456409,3.0,1773.5,1773.2,0.769]
[1745587457419,3.0,1773.5,1773.2,6.40843398]
[1745587457624,3.0,1773.5,1773.2,0.769]
[1745587459085,3.0,1773.5,1773.2,12.68862881]
[1745587459284,3.0,1773.5,1773.2,7.04916648]
[1745587459684,3.0,1773.5,1773.3,0.7503]
[1745587459983,6.0,1773.6,1773.5,0.7611]
[1745587460392,6.0,1773.8,1773.5,0.7611]
[1745587460626,1.25101762,1773.7,1773.5,0.7611]
[1745587461122,1.97611938,1773.7,1773.4,0.7611]
[1745587461591,4.97611938,1773.7,1773.4,0.7611]
[1745587462406,4.25101762,1773.7,1773.4,0.7611]
[1745587466556,1.25101762,1773.5,1773.3,5.281]
[1745587468744,1.40101762,1773.5,1773.0,0.8269]
[1745587468944,1.25101762,1773.3,1773.0,0.8269]
[1745587469134,1.25101762,1773.1,1772.9,6.1069]
[1745587471026,3.15,1773.0,1772.6,5.28]
[1745587471349,1.25101762,1772.8,1772.6,5.28]
[1745587472540,7.25101762,1772.8,1772.6,5.28]
[1745587472852,3.0,1772.7,1772.6,5.28]
[1745587473821,9.0,1772.7,1772.6,5.28]
[1745587474658,9.15,1772.7,1772.6,5.28]
[1745587474857,10.6052064,1772.7,1772.6,5.28]
[1745587477636,10.4552064,1772.7,1772.6,5.28]
[1745587478977,6.0,1772.7,1772.6,10.92143066]
[1745587479226,7.25101762,1773.2,1772.6,5.28]
[1745587479508,7.25101762,1773.2,1772.8,0.8275]
[1745587480209,3.0,1773.1,1772.8,0.8275]
[1745587481705,7.25101762,1773.2,1772.8,6.46812882]
[1745587481908,6.0,1773.2,1772.9,5.64030998]
[1745587482397,6.0,1773.2,1772.8,7.11497625]
[1745587482913,6.0,1773.2,1772.8,7.11494004]
[1745587483358,7.25101762,1773.2,1772.8,7.11494004]
[1745587483764,7.25101762,1773.2,1772.8,6.46807754]
[1745587485287,7.25101762,1773.2,1772.8,6.46813768]
[1745587485497,7.25101762,1773.2,1772.9,5.64034921]
[1745587486394,6.0,1773.2,1773.0,5.272]
[1745587486568,7.25101762,1773.3,1773.0,5.272]
[1745587488622,8.27611938,1773.3,1773.0,5.272]
[1745587491730,1.25101762,1773.1,1773.0,5.272]
[1745587495530,7.25101762,1773.1,1773.0,5.272]
[1745587495845,6.0,1773.1,1773.0,5.272]
[1745587499634,6.0,1773.1,1772.9,5.271]
[1745587500235,1.25101762,1773.0,1772.9,5.271]
[1745587500443,6.0,1773.1,1773.0,6.41675792]
[1745587500795,6.0,1773.1,1772.9,0.5271]
[1745587501000,6.0,1773.1,1772.9,6.0801]
[1745587501432,1.25101762,1773.2,1772.9,6.0801]
[1745587501626,1.25101762,1773.2,1772.9,11.72041064]
[1745587501859,1.25101762,1773.2,1772.9,13.45651798]
[1745587502561,1.25101762,1773.2,1772.9,7.81620734]
[1745587502876,1.25101762,1773.2,1772.9,13.45666835]
[1745587503460,1.25101762,1773.2,1772.9,7.81620734]
[1745587503658,0.25101762,1773.2,1772.9,7.81620734]
[1745587504373,0.25101762,1773.2,1772.9,6.0801]
[1745587504874,0.25101762,1773.2,1772.9,11.72056968]
[1745587505073,1.82009023,1773.4,1772.9,17.36091551]
[1745587505278,1.25101762,1773.5,1773.1,0.7691]
[1745587505499,6.0,1773.5,1773.4,0.7691]
[1745587505680,1.25101762,1773.8,1773.5,5.63833812]
[1745587505842,7.40101762,1774.0,1773.5,5.63833812]
[1745587506176,3.0,1773.9,1773.5,5.63833812]
[1745587506373,7.83122138,1774.0,1773.4,6.68091575]
[1745587506374,1.25101762,1773.8,1773.4,6.68091575]
[1745587506577,1.25101762,1773.8,1773.4,12.31976844]
[1745587506777,1.25101762,1773.8,1773.5,5.63852351]
[1745587507483,1.25101762,1773.8,1773.4,6.68091575]
[1745587507685,1.67611938,1773.8,1773.4,6.0401]
[1745587507981,1.67611938,1773.8,1773.4,11.6788894]
[1745587508186,1.67611938,1773.8,1772.6,5.64123529]
[1745587508391,1.25101762,1773.4,1773.0,6.46885627]
[1745587508750,6.0,1773.5,1773.2,6.40327196]
[1745587508949,6.0,1773.5,1773.2,0.7639]
[1745587509318,6.0,1773.5,1773.3,5.271]
[1745587509875,6.0,1773.5,1773.3,10.91019743]
[1745587510078,6.0,1773.5,1773.3,7.00233961]
[1745587511223,6.0,1773.5,1773.3,5.271]
[1745587511393,1.40101762,1773.4,1773.3,5.271]
[1745587513219,4.40101762,1773.4,1773.3,5.271]
[1745587514823,10.40101762,1773.4,1773.3,5.271]
[1745587517455,11.63936113,1773.3,1772.5,16.918]
[1745587517655,1.25101762,1772.8,1772.5,22.985]
[1745587517821,1.25101762,1772.8,1772.5,22.18]
[1745587520138,1.67526097,1772.8,1772.5,22.18]
[1745587520349,0.15,1772.9,1772.5,22.18]
[1745587520549,0.15,1772.9,1772.5,25.04268431]
[1745587521238,1.25101762,1773.0,1772.5,25.04268431]
[1745587521937,6.0,1772.9,1772.5,25.04268431]
[1745587522245,6.0,1772.9,1772.5,30.68442557]
[1745587522455,6.0,1772.9,1772.5,25.04268431]
[1745587522750,6.0,1772.9,1772.5,8.12468431]
[1745587522951,6.0,1772.9,1772.5,10.90372012]
[1745587523252,6.0,1772.9,1772.6,0.7892]
[1745587523424,0.42500478,1773.0,1772.7,5.64096029]
[1745587523615,0.42500478,1773.0,1772.8,6.4211558]
[1745587523817,0.42500478,1773.0,1772.9,5.263]
[1745587524035,0.42500478,1773.0,1772.9,6.43141558]
[1745587524248,6.0,1773.2,1772.9,6.43141558]
[1745587524620,6.0,1773.2,1772.9,5.263]
[1745587525134,7.25101762,1773.2,1772.9,5.263]
[1745587525626,7.40101762,1773.2,1772.9,5.263]
[1745587526027,7.82521867,1773.2,1772.9,5.263]
[1745587526860,7.40101762,1773.2,1772.9,5.263]
[1745587527045,7.25101762,1773.2,1773.0,0.5263]
[1745587527653,7.25101762,1773.2,1772.9,5.263]
[1745587527971,1.25101762,1773.0,1772.9,5.263]
[1745587529163,10.40101762,1773.0,1772.9,5.263]
[1745587529523,9.15,1773.0,1772.9,5.263]
[1745587531253,9.0,1773.0,1772.9,5.263]
[1745587531445,10.04010176,1773.0,1772.9,5.263]
[1745587532379,3.15,1772.9,1772.1,0.05]
[1745587532579,1.25101762,1772.5,1772.1,0.05]
[1745587532881,3.0,1772.7,1772.2,0.8128]
[1745587533079,6.15,1773.1,1772.5,5.64164773]
[1745587533243,3.615,1773.0,1772.6,0.8128]
[1745587535494,3.0,1773.0,1772.6,0.8128]
[1745587536254,3.0,1773.0,1772.6,6.45412823]
[1745587536596,1.25101762,1773.1,1772.6,6.45412823]
[1745587537290,1.25101762,1773.1,1772.6,0.8128]
[1745587538449,6.0,1773.1,1772.7,6.40091322]
[1745587538696,6.0,1773.1,1772.9,0.8145]
[1745587539001,0.42002199,1773.2,1772.9,6.0785]
[1745587539292,7.25101762,1773.3,1772.9,6.0785]
[1745587542486,7.66361556,1773.3,1772.9,6.0785]
[1745587542884,6.0,1773.3,1772.9,5.264]
[1745587543084,7.25101762,1773.7,1773.2,0.7799]
[1745587543325,6.0,1773.7,1773.4,0.7799]
[1745587543626,7.25101762,1773.9,1773.4,6.41854548]
[1745587543797,7.25101762,1773.9,1773.5,6.44497662]
[1745587544004,7.25101762,1773.9,1773.5,0.8065]
[1745587544490,8.27611938,1773.9,1773.5,0.8065]
[1745587545082,7.25101762,1773.9,1773.5,6.44505587]
[1745587545284,7.25101762,1773.9,1773.5,0.8065]
[1745587546235,6.0,1773.9,1773.5,6.44497068]
[1745587546593,6.0,1773.9,1773.6,5.63813614]
[1745587546790,4.66647185,1774.0,1773.5,6.44497068]
[1745587547012,4.66647185,1774.0,1773.5,7.65333999]
[1745587547450,4.66647185,1774.0,1773.5,13.29168557]
[1745587547646,4.66647185,1774.0,1773.5,7.65321489]
[1745587548159,6.0,1774.1,1773.7,0.7629]
[1745587548459,1.25101762,1774.2,1773.9,6.40013424]
[1745587548668,1.25101762,1774.2,1774.0,5.255]
[1745587553120,6.0,1774.3,1774.0,5.255]
[1745587553316,1.25101762,1774.4,1774.1,0.7745]
[1745587553554,0.10572674,1774.6,1774.2,5.63624833]
[1745587553772,0.10572674,1774.6,1774.3,0.7745]
[1745587554114,0.10572674,1774.6,1774.4,5.254]
[1745587556526,1.25101762,1774.5,1774.4,5.254]
[1745587562646,0.10572674,1774.6,1774.4,5.254]
[1745587562853,0.10572674,1774.6,1774.5,0.7662]
[1745587566537,1.35674436,1774.6,1774.4,5.254]
[1745587566713,1.25101762,1774.5,1774.4,5.254]
[1745587566924,4.25101762,1774.5,1774.4,5.254]
[1745587567080,3.5607762,1774.5,1774.4,5.254]
[1745587568312,4.96179382,1774.5,1774.0,5.251]
[1745587568616,1.25101762,1774.2,1774.0,5.251]
[1745587569215,1.40101762,1774.2,1774.0,5.251]
[1745587569912,1.82375933,1774.2,1774.0,5.251]
[1745587570509,1.82375933,1774.2,1773.7,0.8261]
[1745587570683,1.25101762,1773.9,1773.8,5.252]
[1745587572792,1.40101762,1773.9,1773.8,5.252]
[1745587574206,2.65203524,1773.9,1773.8,5.252]
[1745587574420,0.15,1773.8,1773.4,22.158]
[1745587574591,1.25101762,1773.5,1773.4,22.158]
[1745587574789,1.25101762,1773.5,1773.4,5.252]
[1745587575425,1.40101762,1773.5,1773.4,5.252]
[1745587575821,1.40101762,1773.5,1773.1,5.253]
[1745587576015,1.25101762,1773.2,1773.1,5.253]
[1745587576212,1.68200837,1773.2,1773.1,5.253]
[1745587576599,1.68200837,1773.2,1772.7,16.908]
[1745587576600,1.83200837,1773.2,1772.8,5.246]
[1745587576977,1.25101762,1773.0,1772.8,5.246]
[1745587579110,1.25101762,1773.0,1772.8,6.0436]
[1745587582205,1.68200837,1773.2,1772.8,6.0436]
[1745587582506,1.25101762,1773.2,1772.8,6.0436]
[1745587583510,1.67140916,1773.2,1772.8,6.0436]
[1745587585029,1.25101762,1773.0,1772.8,5.246]
[1745587585886,1.40101762,1773.0,1772.8,5.246]
[1745587586331,1.25101762,1773.0,1772.8,5.246]
[1745587586688,1.40101762,1773.2,1772.8,5.246]
[1745587587314,1.82951774,1773.2,1772.8,5.246]
[1745587587516,1.25101762,1773.0,1772.8,5.246]
[1745587592376,4.25101762,1773.0,1772.8,5.246]
[1745587592555,0.57510176,1772.9,1772.8,5.246]
[1745587592763,0.57510176,1772.9,1772.5,5.249]
[1745587592957,1.25101762,1772.6,1772.5,5.249]
[1745587593288,1.25101762,1772.8,1772.5,5.249]
[1745587593649,1.25101762,1772.6,1772.5,5.249]
[1745587594783,1.25101762,1772.8,1772.5,5.249]
[1745587595782,1.25101762,1772.6,1772.2,6.0429]
[1745587596677,0.15,1772.7,1772.2,6.0429]
[1745587596678,1.25101762,1772.4,1772.2,6.0429]
[1745587597278,2.65203524,1772.4,1772.2,5.249]
[1745587597513,3.0,1772.3,1772.1,0.05]
[1745587597782,1.55101762,1772.2,1772.1,0.05]
[1745587599607,1.70101762,1772.2,1772.1,0.05]
[1745587600617,0.41369827,1772.3,1772.1,0.05]
[1745587600820,1.25101762,1772.5,1772.1,0.05]
[1745587601135,1.25101762,1772.5,1772.2,0.7943]
[1745587601502,1.25101762,1772.6,1772.2,0.7943]
[1745587601796,1.25101762,1772.4,1772.3,5.25]
[1745587602191,1.25101762,1772.4,1772.1,0.05]
[1745587602395,1.25101762,1772.2,1772.1,0.05]
[1745587603203,1.66712726,1772.4,1772.1,0.05]
[1745587604934,1.25101762,1772.6,1772.2,0.7983]
[1745587605103,1.25101762,1772.4,1772.2,0.7983]
[1745587607623,1.66516906,1772.4,1772.2,0.7983]
[1745587609550,1.66516906,1772.4,1772.1,0.05]
[1745587611231,1.66516906,1772.4,1772.2,0.7588]
[1745587611232,1.25101762,1772.4,1772.2,0.7588]
[1745587613120,0.30855698,1772.9,1772.3,0.8217]
[1745587613325,0.30855698,1772.9,1772.6,0.8217]
[1745587613562,1.25101762,1773.0,1772.6,6.46303392]
[1745587613860,1.25101762,1773.2,1772.7,6.44776859]
[1745587614159,1.25101762,1773.2,1772.9,0.8069]
[1745587616268,1.25101762,1773.4,1773.0,5.63993362]
[1745587616624,1.25101762,1773.4,1772.9,6.4471986]
[1745587616820,1.25101762,1773.4,1773.1,0.7727]
[1745587617058,0.15,1773.6,1773.1,0.7727]
[1745587617059,1.25101762,1773.6,1773.3,5.63917202]
[1745587617260,1.25101762,1773.6,1773.4,0.809]
[1745587620524,1.25101762,1773.6,1773.3,0.8196]
[1745587620731,1.25101762,1773.4,1773.2,5.243]
[1745587621354,1.40101762,1773.4,1773.2,5.243]
[1745587621528,1.25101762,1773.4,1773.2,5.243]
[1745587623880,0.15,1773.3,1772.9,5.241]
[1745587624087,2.50203524,1773.1,1772.9,5.241]
[1745587624246,3.15,1773.0,1772.9,5.241]
[1745587624437,3.71520352,1773.0,1772.3,22.56829457]
[1745587624644,1.25101762,1772.7,1772.4,6.0369]
[1745587625501,1.25101762,1772.5,1772.4,6.0369]
[1745587625640,1.25101762,1772.5,1772.4,5.241]
[1745587627363,3.0,1772.7,1772.4,5.241]
[1745587627589,0.41400573,1772.9,1772.4,5.241]
[1745587627771,0.15,1773.2,1772.5,0.8299]
[1745587627961,6.33848641,1773.5,1772.9,6.44402599]
[1745587628165,5.92092087,1774.0,1773.0,11.5262808]
[1745587628166,6.18848641,1773.7,1773.0,11.5262808]
[1745587628469,3.0,1773.6,1773.2,0.7512]
[1745587628860,6.33848641,1773.7,1773.2,0.7512]
[1745587629092,6.18848641,1773.9,1773.2,6.39054956]
[1745587629303,6.60843498,1773.9,1773.2,6.39051904]
[1745587629500,0.6608435,1773.8,1773.2,6.39051904]
[1745587629714,3.6608435,1773.8,1773.2,6.39051904]
[1745587630059,0.6608435,1773.8,1773.2,6.39051904]
[1745587630288,0.6608435,1773.8,1773.2,0.7512]
[1745587630494,3.0,1773.6,1773.2,0.7512]
[1745587632661,3.0,1773.6,1773.2,1.39029074]
[1745587633063,3.0,1773.6,1773.2,0.7512]
[1745587634186,6.33848641,1773.5,1773.0,10.88197232]
[1745587634390,6.33848641,1773.5,1773.0,5.242]
[1745587635089,3.0,1773.4,1773.0,5.242]
[1745587637319,3.0,1773.4,1773.1,5.63983743]
[1745587637682,3.0,1773.4,1773.0,10.88195738]
[1745587638108,3.93384864,1773.4,1773.0,5.242]
[1745587638787,6.18848641,1773.3,1773.0,5.1407883]
[1745587638980,3.0,1773.2,1773.0,5.1407883]
[1745587639401,9.33848641,1773.1,1773.0,5.1407883]
[1745587639611,9.33848641,1773.1,1772.4,5.64191381]
[1745587639612,3.0,1773.0,1772.5,5.234]
[1745587639883,6.18848641,1772.9,1772.5,5.234]
[1745587640517,6.18848641,1772.8,1772.5,5.234]
[1745587640725,6.33848641,1772.6,1772.3,16.926]
[1745587641607,3.0,1772.7,1772.3,22.56823545]
[1745587641811,0.3,1772.8,1772.3,28.21033486]
[1745587642031,0.3,1772.8,1772.4,5.64189581]
[1745587642654,0.3,1772.8,1772.3,16.926]
[1745587642807,0.3,1772.8,1772.3,22.56820176]
[1745587643006,3.15,1772.9,1772.3,25.91267329]
[1745587643445,3.0,1772.9,1772.5,6.45990712]
[1745587643618,0.42670962,1772.9,1772.6,5.235]
[1745587644342,6.18848641,1773.0,1772.6,5.235]
[1745587644667,7.21571992,1773.0,1772.6,5.235]
[1745587647413,7.63612094,1773.0,1772.6,5.235]
[1745587650641,0.15,1772.9,1772.6,5.235]
[1745587651018,7.63612094,1773.0,1772.6,5.235]
[1745587651649,7.21571992,1773.0,1772.6,5.235]
[1745587651951,6.18848641,1773.0,1772.6,6.32266982]
[1745587652186,6.18848641,1773.0,1772.6,5.235]
[1745587652721,3.15,1772.9,1772.6,5.235]
[1745587653048,3.0,1772.7,1772.6,5.235]
[1745587653454,3.0,1772.7,1772.2,5.235]
[1745587653455,0.15,1772.6,1772.2,5.235]
[1745587653669,9.18848641,1772.5,1772.2,5.235]
[1745587656653,9.6089669,1772.5,1772.2,5.235]
[1745587658740,3.42048049,1772.5,1772.2,5.235]
[1745587659259,0.42048049,1772.5,1772.2,5.235]
[1745587659565,6.0,1772.6,1772.2,5.235]
[1745587661155,7.51884864,1772.6,1772.2,5.235]
[1745587661531,7.51884864,1772.6,1772.3,0.8138]
[1745587661532,6.0,1772.6,1772.3,0.8138]
[1745587662235,6.18848641,1772.9,1772.4,5.64176653]
[1745587662439,3.57424497,1773.0,1772.4,5.64176653]
[1745587662759,9.57424497,1773.0,1772.3,6.45600237]
[1745587662946,3.0,1772.8,1772.3,6.45600237]
[1745587663149,3.0,1772.8,1772.3,8.18935676]
[1745587663467,1.25325996,1772.7,1772.3,8.18935676]
[1745587663871,1.25325996,1772.7,1772.3,2.54715439]
[1745587664075,1.25325996,1772.7,1772.3,0.8138]
[1745587665275,1.25325996,1772.7,1772.3,6.45618529]
[1745587667071,1.25325996,1772.7,1772.3,6.4560019]
[1745587667272,1.25325996,1772.7,1772.4,5.64190869]
[1745587667571,1.25325996,1772.7,1772.3,6.45598611]
[1745587667877,1.25325996,1772.7,1772.4,5.64196663]
[1745587668245,1.67750493,1773.0,1772.6,0.7688]
[1745587668444,1.67750493,1773.0,1772.6,11.64608288]
[1745587668890,1.25325996,1772.8,1772.6,6.0048]
[1745587669180,1.40325996,1772.8,1772.6,5.236]
[1745587671491,1.25325996,1772.8,1772.6,5.236]
[1745587671791,1.25325996,1773.0,1772.7,0.8108]
[1745587672283,1.25325996,1773.0,1772.7,6.45182302]
[1745587672444,4.25325996,1773.1,1772.7,0.8108]
[1745587672648,1.25325996,1773.1,1772.7,6.45189386]
[1745587672883,1.25325996,1773.1,1772.8,5.64065302]
[1745587673089,1.25325996,1773.1,1772.8,0.6451453]
[1745587673462,1.25325996,1773.1,1772.8,6.28580356]
[1745587673849,1.25325996,1773.1,1772.8,6.28573923]
[1745587675251,1.25325996,1773.1,1772.8,5.64059393]
[1745587676093,1.25325996,1773.1,1772.7,12.09262074]
[1745587676991,1.25325996,1773.1,1772.8,5.64077808]
[1745587677200,1.25325996,1773.1,1772.7,6.4517066]
[1745587677984,1.25325996,1773.1,1772.7,6.4516862]
[1745587678183,1.25325996,1773.1,1772.8,6.2858071]